Cogmind - Beta 17 @@@ ROGUE MODE // 2026.08.02 @ 02:00:12 Player: Nell Result: Destroyed by G-67 Veteran with Field Laser Performance ------------- Evolutions (4) 2000 Regions Visited (5) 1000 Robots Destroyed (32) 160 Value Destroyed (637) 637 Prototype IDs (3) 60 Alien Tech Used (0) 0 Bonus (21) 21 TOTAL SCORE: 3878 Bonus ------- Follower Combat Kills 21 Cogmind --------- Core Integrity 0/850 Matter 290/300 Energy 220/220 System Corruption 1% Temperature Cool (-130) Movement Walking (190) Ox1 Location -6/Factory Parts ------- > --- POWER (2) -------- Light Nuclear Core Light Nuclear Core > --- PROPULSION (4) --- Carbon-fiber Leg Gravmag System VTOL Module > --- UTILITY (7) ------ Improved Cryofiber Web > --- WEAPON (2) ------- Shock Rifle Field Laser > --- INVENTORY (5) ---- (None) Peak State ------------ > --- POWER ------------ Ion Engine Light Ion Engine > --- PROPULSION ------- Light Treads Light Treads Aluminum Leg Aluminum Leg > --- UTILITY ---------- Medium Storage Unit Advanced Sensor Array Experimental Sensor Array Light Armor Plating System Shield Improved System Shield > --- WEAPON ----------- Light Assault Rifle Battle Rifle > --- INVENTORY -------- Deuterium Engine Micro Nuclear Core Angular Momentum Engine Aluminum Leg Aluminum Leg Nuclear Pulse Thruster Mining Claw Katana [Rating: 35] Favorites ----------- Power Ion Engine Engine Ion Engine Power Core Light Nuclear Core Propulsion Aluminum Leg Treads Light Treads Leg Aluminum Leg Hover Unit Gravmag System Flight Unit VTOL Module Utility Medium Storage Unit Device Experimental Sensor Array Storage Medium Storage Unit Hackware System Shield Protection Light Armor Plating Weapon Light Assault Rifle Energy Gun Field Laser Ballistic Gun Light Assault Rifle Slashing Weapon Mining Claw Build | -11 -10 -10 -10 -8 -6 ------- Run | Yrd Mat Min Sub Scr Fac Slots Evolved 8 | . . . . . 8 Power 1 | . . . . . 1 Propulsion 2 | . . . . . 2 Utility 5 | . . . . . 5 Weapon . | . . . . . . Parts Attached 49 | 8 13 2 . . 26 Power 10 | 1 3 . . . 6 Engine 7 | 1 3 . . . 3 Core 3 | . . . . . 3 Reactor . | . . . . . . Propulsion 18 | 2 5 . . . 11 Treads 2 | . . . . . 2 Leg 13 | 2 5 . . . 6 Wheel . | . . . . . . Hover 1 | . . . . . 1 Flight 2 | . . . . . 2 Utility 10 | 2 2 1 . . 5 Device 5 | 1 1 1 . . 2 Storage 2 | 1 1 . . . . Processor . | . . . . . . Hackware 2 | . . . . . 2 Protection 1 | . . . . . 1 Artifact . | . . . . . . Weapon 11 | 3 3 1 . . 4 Energy Gun 3 | 1 . . . . 2 Energy Cannon . | . . . . . . Ballistic Gun 6 | 2 2 1 . . 1 Ballistic Cannon . | . . . . . . Launcher . | . . . . . . Special Weapon . | . . . . . . Impact Weapon . | . . . . . . Slashing Weapon 2 | . 1 . . . 1 Piercing Weapon . | . . . . . . Special Melee Weapon . | . . . . . . Unidentified Prototypes 1 | . . 1 . . . Parts Lost 26 | . . 1 . . 25 Power 5 | . . . . . 5 Propulsion 10 | . . . . . 10 Utility 6 | . . . . . 6 Weapon 5 | . . 1 . . 4 Highest Loss Streak 25 | . . 1 . . 25 To Critical Strikes . | . . . . . . Average Backups 8 | 4 9 9 10 9 4 Power 1 | 1 2 1 2 1 1 Propulsion 3 | 2 3 4 4 4 1 Utility 1 | . 1 1 2 1 . Weapon 2 | . 2 2 2 2 1 Tool/Special . | . . . . . . Unused Backups 4 | . 3 . . 1 . Power . | . . . . . . Propulsion 2 | . 2 . . . . Utility 1 | . 1 . . . . Weapon 1 | . . . . 1 . Tool/Special . | . . . . . . Average Slot Usage (%) 84 | . 100 97 100 71 68 Engine 12 | . 14 14 14 14 9 Treads 2 | . . . . . 9 Leg 24 | . 28 28 28 28 11 Device 12 | . 14 14 14 14 5 Storage 11 | . 14 14 14 14 4 Hackware 1 | . . . . . 6 Ballistic Gun 14 | . 25 24 28 . 8 Peak Build Rating 35 | 9 9 16 16 15 35 Average Rating 13 | 5 7 10 16 13 23 On Entrance 10 | . 9 8 16 16 14 Avg Prop Armor Cover (%) 11 | . . . . . 11 Naked Turns . | . . . . . . Heaviest Build 33 | 14 20 20 18 18 33 Greatest Support 30 | 20 20 20 20 20 30 Greatest Overweight (x) 10 | 3 . . . . 10 Average Overweight (x) . | . . . . . . Largest Inventory Capacity 10 | 8 10 10 10 10 10 Average Capacity 9 | 7 9 10 10 10 9 Most Carried 10 | 8 10 10 10 10 10 Average Carried 8 | 4 9 9 10 9 4 Final Capacity 10 | 8 10 10 10 10 5 Final Carried 10 | 8 10 10 10 10 . Class Distribution -------------------- 89% | Mutant 6% | Hacker-Mutant 4% | Scavenger-Mutant Dominant Class ---------------- Mutant | -10/Materials Mutant | -10/Mines Mutant | -10/Subcaves Mutant | -8/Scraptown Mutant | -6/Factory Resources | -11 -10 -10 -10 -8 -6 ----------- Run | Yrd Mat Min Sub Scr Fac Matter Collected 1040 | 258 432 138 . 12 200 Remotely . | . . . . . . Salvage Created 833 | 73 471 44 . . 245 Parts 67 | 3 47 4 . . 13 Haulers Intercepted 1 | . 1 . . . . Recyclers Shooed 2 | . 2 . . . . Parts Field Recycled . | . . . . . . Retrieved Matter . | . . . . . . Parts Self-Destructed . | . . . . . . Prevented . | . . . . . . Parts Restored . | . . . . . . Kills | -11 -10 -10 -10 -8 -6 ------- Run | Yrd Mat Min Sub Scr Fac Combat Hostiles Destroyed 25 | . 16 3 . . 6 Melee 2 | . . . . . 2 Guns 23 | . 16 3 . . 4 Classes Destroyed 9 | 2 6 . . . 1 Builder 1 | . 1 . . . . Tunneler 2 | 1 1 . . . . Hauler 1 | . 1 . . . . Recycler 1 | 1 . . . . . Operator 1 | . 1 . . . . Watcher 1 | . 1 . . . . Swarmer 17 | . 11 3 . . 3 Grunt 7 | . 5 . . . 2 Programmer 1 | . . . . . 1 Best Kill Streak 3 | 1 3 3 . . 2 Combat Bots Only 3 | . 3 3 . . 2 Max Kills in Single Turn 1 | 1 1 1 . . 1 Gunslinging . | . . . . . . Exploded . | . . . . . . Melee 1 | . . . . . 1 Uniques/NPCs Destroyed . | . . . . . . Combat | -11 -10 -10 -10 -8 -6 -------- Run | Yrd Mat Min Sub Scr Fac Hostile Shots Fired 353 | . 102 21 . . 230 Missed 101 | . 41 8 . . 52 Hits 252 | . 61 13 . . 178 Projectile 252 | . 61 13 . . 178 Critical Strikes 8 | . . 1 . . 7 Damage Taken 3674 | . 587 100 . . 2987 Core 985 | . 106 26 . . 853 Absorbed by Shields . | . . . . . . Core Remaining (%) 73 | 100 . . . 47 . Volleys Fired 103 | 9 58 14 . . 22 Largest 2 | 2 2 2 . . 2 Hottest 113 | 40 40 40 . . 113 Shots Fired 181 | 18 114 18 . . 31 Gun 181 | 18 114 18 . . 31 Cannon . | . . . . . . Launcher . | . . . . . . Special . | . . . . . . Kinetic 170 | 18 114 18 . . 20 Thermal 9 | . . . . . 9 Explosive . | . . . . . . Electromagnetic 2 | . . . . . 2 Robot Hit Streak 9 | 3 6 6 . . 9 Robot Miss Streak 4 | 2 3 4 . . 3 Penetration Max . | . . . . . . Secondary Targets 5 | . 5 . . . . Max Gunslinging Chain 1 | . 1 . . . . Shots Hit Robots 125 | 13 64 10 . . 38 Core Hits 59 | 4 32 4 . . 19 Critical Kills 1 | . 1 . . . . Critical Parts Destroyed 1 | . 1 . . . . Critical Strikes 6 | . 2 . . . 4 Burn 2 | . . . . . 2 Destroy 2 | . 2 . . . . Sever 2 | . . . . . 2 Melee Attacks 31 | . 11 . . . 20 Impact . | . . . . . . Slashing 31 | . 11 . . . 20 Piercing . | . . . . . . Sneak Attacks 2 | . 2 . . . . Combat Hostiles . | . . . . . . Follow-up Attacks 1 | . . . . . 1 Damage Inflicted 1825 | 131 789 87 . . 818 Guns 1193 | 129 662 79 . . 323 Cannons . | . . . . . . Explosions . | . . . . . . Melee 589 | . 97 . . . 492 Ramming 43 | 2 30 8 . . 3 Kinetic 1062 | 129 662 79 . . 192 Thermal 117 | . . . . . 117 Explosive . | . . . . . . Electromagnetic 14 | . . . . . 14 Impact . | . . . . . . Slashing 589 | . 97 . . . 492 Piercing . | . . . . . . Highest Corruption 7 | . 7 7 7 7 1 Average Corruption 5 | . 6 7 7 7 1 Corruption Purged . | . . . . . . Corruption Blocked . | . . . . . . Effects 59 | . 34 20 3 2 . Message Errors 14 | . 5 6 2 1 . Matter Fused 11 | . 8 2 . 1 . Heat Flow Errors 7 | . 5 2 . . . Energy Discharges 10 | . 6 3 1 . . Parts Rejected 1 | . . 1 . . . Parts Fused 1 | . . 1 . . . Data Loss (minor) 9 | . 6 3 . . . Data Loss (major) 3 | . 1 2 . . . Misfires 1 | . 1 . . . . Weapon Failures 2 | . 2 . . . . Overload Shots . | . . . . . . Overflow Damage 20 | . 14 . . . 6 Projectiles . | . . . . . . Explosions . | . . . . . . Melee 20 | . 14 . . . 6 Knockbacks 1 | . . 1 . . . Impact 1 | . . 1 . . . Kinetic . | . . . . . . Secondary . | . . . . . . Self-Inflicted Damage . | . . . . . . Shots . | . . . . . . Rammed . | . . . . . . Targets Rammed 16 | 1 5 4 . . 6 Kicked 16 | 1 5 4 . . 6 Crushed . | . . . . . . Highest Temperature 262 | . 262 214 . . 26 Average Temperature 80 | . 86 97 . . 11 Received Heat Transfer 867 | . 132 . . . 735 Siege Activations . | . . . . . . Martial Activations . | . . . . . . Shielding Activations . | . . . . . . Robots Disrupted . | . . . . . . Combat Hostiles . | . . . . . . Robots Corrupted . | . . . . . . Combat Hostiles . | . . . . . . Parts Fried . | . . . . . . Impact Corruptions . | . . . . . . Robots Melted . | . . . . . . Combat Hostiles . | . . . . . . Parts Melted 1 | . . . . . 1 Heat Transferred 407 | . . . . . 407 Parts Sabotaged . | . . . . . . Parts Stolen . | . . . . . . Parts Stripped . | . . . . . . Power Chain Reactions . | . . . . . . Alert | -11 -10 -10 -10 -8 -6 ------- Run | Yrd Mat Min Sub Scr Fac Maximum Alert Level 1 | . 1 . . . . Low Security (%) 83 | 100 61 100 . . 100 Level 1 16 | . 38 . . . . Level 2 . | . . . . . . Level 3 . | . . . . . . Level 4 . | . . . . . . Level 5 . | . . . . . . High Security . | . . . . . . Max Security . | . . . . . . Peak Influence 255 | 5 255 81 . . 54 Initial 51 | . . 51 . . . Average 72 | . 151 21 . . 6 Influence Increases 888 | 10 545 149 . . 184 Destroy 0b10 Robot/C 560 | . 320 120 . . 120 Destroy 0b10 Robot/NC 40 | 10 25 . . . 5 Destroy Leader 126 | . 74 20 . . 32 Allied During Kill 9 | . . 9 . . . Successful Hack 28 | . 16 . . . 12 Disable Machine 15 | . 15 . . . . Destroy Structure 5 | . 5 . . . . Lose Combat Pursuer 105 | . 90 . . . 15 Influence Decreases 868 | 10 413 281 . . 164 Entered New Map 81 | . . 81 . . . Time Decay 660 | 10 413 170 . . 67 Lost Part 107 | . . 10 . . 97 Lost Ally 20 | . . 20 . . . Squads Dispatched 9 | . 6 . . . 3 Investigation 4 | . 4 . . . . Extermination 2 | . . . . . 2 Reinforcement 3 | . 2 . . . 1 Assault . | . . . . . . Garrison . | . . . . . . Intercept . | . . . . . . Searches Triggered . | . . . . . . Construction Impeded . | . . . . . . Haulers Reinforced . | . . . . . . Active Scanning Responses . | . . . . . . Cargo Convoy Interrupts . | . . . . . . Stealth | -11 -10 -10 -10 -8 -6 --------- Run | Yrd Mat Min Sub Scr Fac Distress Signals 4 | . 3 . . . 1 Communications Jammed . | . . . . . . Distress Signals . | . . . . . . Times Spotted 59 | . 35 6 . . 18 Peak Tracking Total 6 | . 5 3 . . 6 Tactical Retreats 4 | . 3 . . . 1 Traps | -11 -10 -10 -10 -8 -6 ------- Run | Yrd Mat Min Sub Scr Fac Traps Triggered 8 | . 8 . . . . Indirectly . | . . . . . . Trap Hack Attempts . | . . . . . . Triggered . | . . . . . . Disarmed . | . . . . . . Reprogrammed . | . . . . . . Reused . | . . . . . . Traps Extracted . | . . . . . . Installed . | . . . . . . Triggered . | . . . . . . Machines | -11 -10 -10 -10 -8 -6 ---------- Run | Yrd Mat Min Sub Scr Fac Machines Disabled 1 | . 1 . . . . Max in Single Turn 1 | . 1 . . . . Machines Repaired . | . . . . . . Machines Dismantled . | . . . . . . Machines Sabotaged . | . . . . . . Overloaded Fab Kills . | . . . . . . Hacking | -11 -10 -10 -10 -8 -6 --------- Run | Yrd Mat Min Sub Scr Fac Machines Accessed 13 | . 7 . . 2 4 Terminals 8 | . 5 . . . 3 Fabricators . | . . . . . . Repair Stations . | . . . . . . Recycling Units 3 | . 2 . . . 1 Scanalyzers . | . . . . . . Garrison Access . | . . . . . . Total Hacks 50 | . 17 . . 19 14 Successful 33 | . 9 . . 19 5 Failed 17 | . 8 . . . 9 Catastrophic 5 | . 3 . . . 2 Database Lockouts . | . . . . . . Manual 17 | . 6 . . 1 10 Terminals 25 | . 13 . . . 12 Fabricators . | . . . . . . Repair Stations . | . . . . . . Recycling Units 6 | . 4 . . . 2 Scanalyzers . | . . . . . . Garrison Access . | . . . . . . Terminal Hacks 30 | . 6 . . 19 5 Record 20 | . . . . 19 1 Robot Analysis 1 | . 1 . . . . Prototype ID Bank 1 | . 1 . . . . Terminal Index 1 | . 1 . . . . Alert Level 4 | . 2 . . . 2 Locate Traps 1 | . . . . . 1 Recall Investigation 2 | . 1 . . . 1 Fabricator Hacks . | . . . . . . Repair Station Hacks . | . . . . . . Recycling Unit Hacks 3 | . 3 . . . . Retrieve Matter 1 | . 1 . . . . Retrieve Components 2 | . 2 . . . . Scanalyzer . | . . . . . . Garrison Access Hacks . | . . . . . . Unauthorized Hacks . | . . . . . . Terminals . | . . . . . . Fabricators . | . . . . . . Repair Stations . | . . . . . . Recycling Units . | . . . . . . Scanalyzers . | . . . . . . Garrison Access . | . . . . . . Data Cores Recovered . | . . . . . . Used . | . . . . . . Hacking Detections 10 | . 6 . . . 4 Full Trace Events 2 | . 2 . . . . Feedback Events . | . . . . . . Feedback Blocked . | . . . . . . Robot Schematics Acquired . | . . . . . . Robots Built . | . . . . . . Authchips . | . . . . . . Time . | . . . . . . Total Robot Build Rating . | . . . . . . Part Schematics Acquired . | . . . . . . Parts Built . | . . . . . . Authchips . | . . . . . . Time . | . . . . . . Total Part Build Rating . | . . . . . . Part Studies Acquired . | . . . . . . Parts Repaired . | . . . . . . Time . | . . . . . . Parts Recycled . | . . . . . . Recycled Matter . | . . . . . . Retrieved Matter . | . . . . . . Retrieved Components 7 | . 7 . . . . Parts Scanalyzed . | . . . . . . Part Schematics Acquired . | . . . . . . Parts Damaged . | . . . . . . Bothacking | -11 -10 -10 -10 -8 -6 ------------ Run | Yrd Mat Min Sub Scr Fac Used RIF Installer . | . . . . . . Robots Hacked . | . . . . . . Non-combat . | . . . . . . Combat . | . . . . . . Robot Hacks Applied . | . . . . . . Relay Couplers Released . | . . . . . . Fabnet Peak Effective % . | . . . . . . Robots Rewired . | . . . . . . Allies Hacked . | . . . . . . Hacks Repelled . | . . . . . . Allies | -11 -10 -10 -10 -8 -6 -------- Run | Yrd Mat Min Sub Scr Fac Total Allies 3 | . . 3 . . . Largest Group 3 | . . 3 2 2 2 Highest-Rated Group 40 | . . 40 24 24 24 Highest-Rated Ally 16 | . . 16 16 16 16 Total Orders . | . . . . . . Ally Attacks 14 | . . 4 . . 10 Total Damage 104 | . . 43 . . 61 Kills 4 | . . 3 . . 1 Allies Corrupted . | . . . . . . Allies Melted . | . . . . . . Intel | -11 -10 -10 -10 -8 -6 ------- Run | Yrd Mat Min Sub Scr Fac Active Infowar (turns) 4101 | 9 1337 620 138 1275 722 Sensors 2344 | . . 209 138 1275 722 Terrain 131 | 9 122 . . . . Structural 1626 | . 1215 411 . . . Robot Analysis Total 1 | . 1 . . . . Derelict Logs Recovered 4 | . . 2 2 . . Drone Launches . | . . . . . . Drone Recoveries . | . . . . . . Exploration | -11 -10 -10 -10 -8 -6 ------------- Run | Yrd Mat Min Sub Scr Fac Turns Passed 4494 | 126 1337 620 138 1275 998 Spaces Moved 3096 | 68 916 483 116 1059 454 Core 21 | 12 . . . . 9 Treads . | . . . . . . Legs 3074 | 56 916 483 116 1059 444 Wheels . | . . . . . . Hover . | . . . . . . Flight 1 | . . . . . 1 Fastest Speed 50 | 50 120 120 120 120 120 Average Speed 129 | 116 120 120 120 120 185 Slowest Speed 550 | 200 120 120 120 120 550 Overloaded Moves . | . . . . . . Propulsion Burnouts . | . . . . . . Robots Hopped . | . . . . . . Potential Cave-ins . | . . . . . . Cave-ins Triggered . | . . . . . . Exploration Rate (%) 45 | 4 98 87 13 61 11 Regions Visited 5 Branch Regions 3 Pre-discovered Areas . | . . . . . . Known Exits Taken . | . . . . . . Unknown Exits Taken 5 | 1 1 1 1 1 . Scrap Searched 6 | . . 2 . 4 . Spaces Dug 5 | . 5 . . . . Terrain Destroyed 5 | . 5 . . . . Melee 5 | . 5 . . . . Projectile . | . . . . . . AOE . | . . . . . . Terrain Rammed . | . . . . . . Walls Destroyed . | . . . . . . Machines Disabled . | . . . . . . Actions | -11 -10 -10 -10 -8 -6 --------- Run | Yrd Mat Min Sub Scr Fac Total 3361 | 95 1031 506 115 1067 547 Wait 14 | . 6 . . . 8 Move 3091 | 67 915 482 115 1058 454 Hop . | . . . . . . Pick Up 26 | 8 5 1 . 3 9 Fast Attach 15 | 6 . . . . 9 Attach 23 | 2 . 2 . . 19 Detach 3 | 1 . . . 2 . Swap 22 | 1 17 3 . . 1 Drop 18 | . 14 . . 4 . Fire 103 | 9 58 14 . . 22 Melee 30 | . 11 . . . 19 Ram . | . . . . . . Kick 16 | 1 5 4 . . 6 Crush . | . . . . . . Escape Stasis . | . . . . . . Rewire . | . . . . . . Trap . | . . . . . . Miscellaneous . | . . . . . . Route ------- -11/Scrapyard -10/Materials (discovered 6 exits: [*Mat x3] / [*Min x2] / [*Sub]) -10/Mines (discovered 3 exits: [*Mat x2] / [*Sub]) -10/Subcaves (discovered 2 exits: [*Mat] / *Scr) -8/Scraptown -6/Factory (discovered 1 exit: [*Low]) History --------- Turn | Location | Event 2 | -11/Scrapyard | Met Revision 17 8 | -11/Scrapyard | Discovered new exit (range 16) 127 | -11/Scrapyard | Entered Materials 308 | -10/Materials | Build established: Mutant 566 | -10/Materials | Discovered new exit (range 11) 776 | -10/Materials | Discovered new exit (range 6) 831 | -10/Materials | Discovered new exit (range 6) 831 | -10/Materials | Discovered new exit (range 15) 1110 | -10/Materials | Discovered new exit (range 11) 1327 | -10/Materials | Discovered new exit (range 10) 1464 | -10/Materials | Entered Mines 1497 | -10/Mines | Discovered new exit (range 10) 1531 | -10/Mines | Core integrity fell below 50% 1609 | -10/Mines | Learned Materials stockpile data 1634 | -10/Mines | Learned Materials garrison access intel 1635 | -10/Mines | Assisted by bots powering up and referring to "LRC-V3" 1667 | -10/Mines | Discovered new exit (range 7) 1871 | -10/Mines | Found a damaged Exp. Sensor Array with a note attached 1874 | -10/Mines | Found Prototype Device 1875 | -10/Mines | Identified Exp. Sensor Array 1912 | -10/Mines | Discovered new exit (range 7) 2084 | -10/Mines | Entered Subcaves 2084 | -10/Subcaves | Accompanied by 2 allies 2084 | -10/Subcaves | Discovered new exit (range 10) 2085 | -10/Subcaves | Approached by a straggling Scientist 2087 | -10/Subcaves | Learned location of 1 exit from Materials 2222 | -10/Subcaves | Entered Scraptown 2222 | -8/Scraptown | Accompanied by 2 allies 2281 | -8/Scraptown | System corruption cleaned by C-Scrubber 2669 | -8/Scraptown | Visited UFD Registry 2685 | -8/Scraptown | Visited Cyclists 2754 | -8/Scraptown | Visited Assassins FH 2783 | -8/Scraptown | Visited Shadow of the Wyrm 3167 | -8/Scraptown | Visited Bundlers 3215 | -8/Scraptown | Visited Red Mages 3284 | -8/Scraptown | Visited SPCMW 3348 | -8/Scraptown | Visited CPS Storage 3401 | -8/Scraptown | Discovered new exit (range 4) 3497 | -8/Scraptown | Entered Factory 3497 | -6/Factory | Accompanied by 2 allies 3497 | -6/Factory | Evolved 8 slots: Power x1, Propulsion x2, Utility x5 3934 | -6/Factory | Discovered new exit (range 12) 4282 | -6/Factory | Core integrity fell below 50% 4297 | -6/Factory | Core integrity fell below 20% 4361 | -6/Factory | Lost 25 parts (5p10n6u4w) 4495 | -6/Factory | Destroyed by G-67 Veteran with Field Laser Last Messages --------------- 04373_ R-10 Processor collects Aluminum Leg. 04377_ Acquired Gravmag System. 04383_ Acquired 10 matter. 04386_ R-10 Processor collects Autogun. 04389_ R-10 Processor collects Lgt. Nuclear Core. 04392_ ALERT: Potential suspicious activity detected, Programmers report to Factory Zone 9D. 04396_ R-10 Processor collects Sml. Matter Pod. 04404_ K-01 Serf collects debris. 04408_ ALERT: Cargo convoy en route, clear transfer corridor. 04432_ ALERT: Security rotation in progress. 04442_ Connecting with Terminal... >>Alert(Check) Current Alert Level: Low Security >>Recall(Investigation) Establishing remote squad link... No tasked investigation squads found. 04455_ Acquired Imp. Cryofiber Web. 04492_ Terminal disabled. 04493_ Critical hit (Burn: +37). Map ----- +----------------------------------------------------+ | #??????????????????????????????????????? | | """" """" #??????????????????????????????????????? | | """" """" #??????????????????????????????????????? | | """" """" #??????????????????????????????????????? | | """" """" #??????????????????????????????????????? | | """" """" #??????????????????????????????????????? | | """" """ #??????????????????????????????????????? | | """"%"""" #??????????????????????????????????????? | | % #??????????????????????????????????????? | | %%%% % #??????????????????????????????????????? | | % % #??????????????????????????????????????? | | ##+####################################??????????? | | %% ??????????? | | % ??????????? | | ^ ?????????? | | ?????????? | | ????????? | | ????????? | | k ????????? | | ##+#####################g#########???????????????? | | ? ?????????????# gg """ #?????????????????? | | ? "?""????????????# T" #?????????????????? | | ? "???????????????# """ #?????????????????? | | ? "???????????????# """ #?????????????????? | | ? ????????????????# """ #?????????????????? | | ????????????????# @ #?????????????????? | | ?????????????????# """ """ #?????????????????? | | ??????????????????# """ """ #?????????????????? | | ??????????????????# """ """ #?????????????????? | | ??????????????????# #?????????????????? | | ??????????????????# #?????????????????? | | ??????????????????# #?????????????????? | | ??????????????????##############?????????????????? | | ?????????????????????????????????????????????????? | | ?????????????????????????????????????????????????? | | ?????????????????????????????????????????????????? | | ?????????????????????????????????????????????????? | | ?????????????????????????????????????????????????? | | ?????????????????????????????????????????????????? | | ?????????????????????????????????????????????????? | | ?????????????????????????????????????????????????? | | ?????????????????????????????????????????????????? | | ?????????????????????????????????????????????????? | | ?????????????????????????????????????????????????? | | ?????????????????????????????????????????????????? | | ?????????????????????????????????????????????????? | | ?????????????????????????????????????????????????? | | ?????????????????????????????????????????????????? | | ?????????????????????????????????????????????????? | | ?????????????????????????????????????????????????? | +----------------------------------------------------+ Best States ------------- Heat Dissipation 37 Energy Generation 28 Energy Capacity 425 Matter Stores 300 Matter Capacity 300 Sight Range 16 Robot Scan Range 20 Terrain Scan Range 16 Terrain Scan Density 10 Base Temperature (-) 150 Armor Coverage 150 Evasion (%) 55 Defensive Hacking 22 Item Schematics ----------------- None Robot Schematics ------------------ None Fabricated ------------ Nothing Repaired ---------- Nothing Studied --------- None Alien Tech Used ----------------- None Achievements -------------- Civilization 2243 DATA ERROR: Steam Global Achievement% For Emergencies Only Hydra I Have A Map? Organ Harvest There's More Where That Came From You Again Challenges ------------ None Game ------ Seed ActiveHardcellBank Manual? 0 Play Time 01:25:25 Cumulative 38.1 hours Start 2026.08.01 @ 23:10:21 End 2026.08.02 @ 02:00:12 Sessions 1 Manual Loads 0 Difficulty Rogue Special Mode None Game No. 77 Rogue 77 Adventurer 0 Explorer 0 Win Type - Total 0 Types 0/0/0/0/0/0/0/0/0/0 Lore% 26 Gallery% 35 Achievement% 18 Wizard Run 0 Options --------- Layout 0 ASCII 0 Keyboard 1 Movement Arrows Keybinds 0 Fullscreen 2 Font 24/Smallcaps Map View 76x50 Zoom Use 1% Tactical HUD 1 Map Filters NONE Filters NONE Steam 1 RUN: 3b6e7009-d1e7-4dd1-bd7f-2e86d2fd29a1